[Event "Live Chess"]
[Site "Chess.com"]
[Date "2010.12.14"]
[Round "-"]
[White "keizer-inactive"]
[Black "hipposcottimus"]
[Result "0-1"]
[CurrentPosition "r4rk1/pp3ppp/5b1q/1Np1P3/3n4/5Q1P/PPP3P1/RN3R1K w - -"]
[Timezone "UTC"]
[ECO "A02"]
[ECOUrl "https://www.chess.com/openings/Birds-Opening-Froms-Gambit...3.exd6-Bxd6-4.Nf3-Nf6"]
[UTCDate "2010.12.14"]
[UTCTime "09:19:35"]
[WhiteElo "1360"]
[BlackElo "1651"]
[TimeControl "60"]
[Termination "hipposcottimus won on time"]
[StartTime "09:19:35"]
[EndDate "2010.12.14"]
[EndTime "09:21:34"]
[Link "https://www.chess.com/game/live/77153927"]

1. f4 {[%clk 0:01:00]} 1... e5 {[%clk 0:01:00]} 2. fxe5 {[%clk 0:00:50.3]} 2... d6 {[%clk 0:00:59]} 3. exd6 {[%clk 0:00:48.6]} 3... Bxd6 {[%clk 0:00:58.3]} 4. Nf3 {[%clk 0:00:48.1]} 4... Nf6 {[%clk 0:00:57.2]} 5. Nd4 {[%clk 0:00:46.2]} 5... c5 {[%clk 0:00:54.8]} 6. Nb5 {[%clk 0:00:43.3]} 6... Be7 {[%clk 0:00:54.5]} 7. e3 {[%clk 0:00:40.5]} 7... Bd7 {[%clk 0:00:54.1]} 8. N5c3 {[%clk 0:00:37.6]} 8... O-O {[%clk 0:00:51]} 9. e4 {[%clk 0:00:36.9]} 9... Bg4 {[%clk 0:00:46.5]} 10. Be2 {[%clk 0:00:35]} 10... Qd7 {[%clk 0:00:42.6]} 11. Bxg4 {[%clk 0:00:31.7]} 11... Nxg4 {[%clk 0:00:41.5]} 12. h3 {[%clk 0:00:29.6]} 12... Bh4+ {[%clk 0:00:36.6]} 13. Kf1 {[%clk 0:00:22.8]} 13... Nh6 {[%clk 0:00:28.4]} 14. Kg1 {[%clk 0:00:18.8]} 14... Qd4+ {[%clk 0:00:26.8]} 15. Kh2 {[%clk 0:00:13.3]} 15... Qf2 {[%clk 0:00:25.4]} 16. Rf1 {[%clk 0:00:11.6]} 16... Bg3+ {[%clk 0:00:24.4]} 17. Kh1 {[%clk 0:00:10.2]} 17... Qd4 {[%clk 0:00:22.7]} 18. d3 {[%clk 0:00:08.2]} 18... Nc6 {[%clk 0:00:21.7]} 19. Nb5 {[%clk 0:00:07.6]} 19... Qf6 {[%clk 0:00:19.5]} 20. Bxh6 {[%clk 0:00:05.4]} 20... Qxh6 {[%clk 0:00:17.3]} 21. Qf3 {[%clk 0:00:04.5]} 21... Be5 {[%clk 0:00:13.8]} 22. d4 {[%clk 0:00:03.2]} 22... Bf6 {[%clk 0:00:12.2]} 23. e5 {[%clk 0:00:02.1]} 23... Nxd4 {[%clk 0:00:11.2]} 0-1

[Event "Live Chess"]
[Site "Chess.com"]
[Date "2010.12.14"]
[Round "-"]
[White "hipposcottimus"]
[Black "keizer-inactive"]
[Result "1-0"]
[CurrentPosition "8/7p/R5p1/3R3k/8/1P3K1P/P7/8 b - -"]
[Timezone "UTC"]
[ECO "B01"]
[ECOUrl "https://www.chess.com/openings/Scandinavian-Defense-2.e5"]
[UTCDate "2010.12.14"]
[UTCTime "09:16:48"]
[WhiteElo "1648"]
[BlackElo "1363"]
[TimeControl "60"]
[Termination "hipposcottimus won on time"]
[StartTime "09:16:48"]
[EndDate "2010.12.14"]
[EndTime "09:18:58"]
[Link "https://www.chess.com/game/live/77153433"]

1. e4 {[%clk 0:01:00]} 1... d5 {[%clk 0:01:00]} 2. e5 {[%clk 0:00:57.2]} 2... d4 {[%clk 0:00:58.9]} 3. c3 {[%clk 0:00:55.4]} 3... dxc3 {[%clk 0:00:56.8]} 4. Nxc3 {[%clk 0:00:53.9]} 4... e6 {[%clk 0:00:53.9]} 5. d4 {[%clk 0:00:53.3]} 5... c5 {[%clk 0:00:51.7]} 6. Nf3 {[%clk 0:00:52.5]} 6... cxd4 {[%clk 0:00:50.9]} 7. Bb5+ {[%clk 0:00:50.2]} 7... Bd7 {[%clk 0:00:49.2]} 8. Nxd4 {[%clk 0:00:49.5]} 8... Bxb5 {[%clk 0:00:48.2]} 9. Ndxb5 {[%clk 0:00:48.8]} 9... a6 {[%clk 0:00:47.8]} 10. Nd4 {[%clk 0:00:47.5]} 10... Nc6 {[%clk 0:00:45.4]} 11. Nxc6 {[%clk 0:00:45.1]} 11... Qxd1+ {[%clk 0:00:44.2]} 12. Nxd1 {[%clk 0:00:42.4]} 12... bxc6 {[%clk 0:00:43.8]} 13. O-O {[%clk 0:00:42.2]} 13... Bc5 {[%clk 0:00:41.7]} 14. Kh1 {[%clk 0:00:40.2]} 14... Ne7 {[%clk 0:00:41.1]} 15. f4 {[%clk 0:00:39.3]} 15... O-O {[%clk 0:00:39.7]} 16. Be3 {[%clk 0:00:38.5]} 16... Bxe3 {[%clk 0:00:38.2]} 17. Nxe3 {[%clk 0:00:38.2]} 17... Rab8 {[%clk 0:00:37.6]} 18. b3 {[%clk 0:00:36.2]} 18... Nd5 {[%clk 0:00:36]} 19. Nc4 {[%clk 0:00:35.9]} 19... Rb4 {[%clk 0:00:32.6]} 20. g4 {[%clk 0:00:30]} 20... f6 {[%clk 0:00:28.3]} 21. f5 {[%clk 0:00:29.2]} 21... fxe5 {[%clk 0:00:27.2]} 22. Nxe5 {[%clk 0:00:27.9]} 22... Ne3 {[%clk 0:00:25.1]} 23. Rf3 {[%clk 0:00:25.7]} 23... Nc2 {[%clk 0:00:22.1]} 24. Rc1 {[%clk 0:00:23.3]} 24... Nd4 {[%clk 0:00:20.4]} 25. Nxc6 {[%clk 0:00:19]} 25... Nxc6 {[%clk 0:00:19]} 26. Rxc6 {[%clk 0:00:17.3]} 26... Rxg4 {[%clk 0:00:18.1]} 27. Rxe6 {[%clk 0:00:16.4]} 27... Rxf5 {[%clk 0:00:16.3]} 28. Rxf5 {[%clk 0:00:15]} 28... g6 {[%clk 0:00:15.2]} 29. Rfe5 {[%clk 0:00:13.9]} 29... Kg7 {[%clk 0:00:14.5]} 30. Rd5 {[%clk 0:00:13.1]} 30... Kh6 {[%clk 0:00:13.6]} 31. Rxa6 {[%clk 0:00:11.9]} 31... Re4 {[%clk 0:00:10]} 32. h3 {[%clk 0:00:11.5]} 32... Re1+ {[%clk 0:00:08.9]} 33. Kg2 {[%clk 0:00:11.2]} 33... Re2+ {[%clk 0:00:04.7]} 34. Kf3 {[%clk 0:00:10.9]} 34... Rd2 {[%clk 0:00:03.1]} 35. Rxd2 {[%clk 0:00:08.3]} 35... Kh5 {[%clk 0:00:00.1]} 36. Rd5+ {[%clk 0:00:08]} 1-0

[Event "Live Chess"]
[Site "Chess.com"]
[Date "2010.12.14"]
[Round "-"]
[White "keizer-inactive"]
[Black "hipposcottimus"]
[Result "0-1"]
[CurrentPosition "2r2r1k/8/p5Pp/n1p5/1p3PP1/4P3/P1K5/8 w - -"]
[Timezone "UTC"]
[ECO "D02"]
[ECOUrl "https://www.chess.com/openings/Queens-Pawn-Opening-Zukertort-Variation"]
[UTCDate "2010.12.14"]
[UTCTime "09:14:29"]
[WhiteElo "1366"]
[BlackElo "1645"]
[TimeControl "60"]
[Termination "hipposcottimus won on time"]
[StartTime "09:14:29"]
[EndDate "2010.12.14"]
[EndTime "09:16:36"]
[Link "https://www.chess.com/game/live/77153009"]

1. Nf3 {[%clk 0:01:00]} 1... d5 {[%clk 0:01:00]} 2. d4 {[%clk 0:00:59.3]} 2... Bg4 {[%clk 0:00:59.7]} 3. Ne5 {[%clk 0:00:57.3]} 3... Nf6 {[%clk 0:00:55.3]} 4. f3 {[%clk 0:00:52]} 4... Bf5 {[%clk 0:00:53.5]} 5. g4 {[%clk 0:00:50.2]} 5... Bg6 {[%clk 0:00:47]} 6. Nxg6 {[%clk 0:00:48]} 6... fxg6 {[%clk 0:00:44.7]} 7. h4 {[%clk 0:00:46.2]} 7... Nc6 {[%clk 0:00:42]} 8. Bg5 {[%clk 0:00:42.4]} 8... e5 {[%clk 0:00:39.1]} 9. Bxf6 {[%clk 0:00:40.8]} 9... Qxf6 {[%clk 0:00:38.8]} 10. dxe5 {[%clk 0:00:39.9]} 10... Qxe5 {[%clk 0:00:38]} 11. Nc3 {[%clk 0:00:38.7]} 11... d4 {[%clk 0:00:36.8]} 12. Nb5 {[%clk 0:00:34.2]} 12... Bb4+ {[%clk 0:00:33.9]} 13. c3 {[%clk 0:00:30.6]} 13... dxc3 {[%clk 0:00:32.9]} 14. bxc3 {[%clk 0:00:26.1]} 14... Qxb5 {[%clk 0:00:30.7]} 15. cxb4 {[%clk 0:00:24]} 15... Qxb4+ {[%clk 0:00:30.1]} 16. Qd2 {[%clk 0:00:23.6]} 16... O-O {[%clk 0:00:28.2]} 17. Qxb4 {[%clk 0:00:20.6]} 17... Nxb4 {[%clk 0:00:27.8]} 18. e3 {[%clk 0:00:20.1]} 18... Nc2+ {[%clk 0:00:27]} 19. Kd1 {[%clk 0:00:18.7]} 19... Nxa1 {[%clk 0:00:26.7]} 20. Bc4+ {[%clk 0:00:18.3]} 20... Kh8 {[%clk 0:00:24.9]} 21. Ke2 {[%clk 0:00:17.4]} 21... Nc2 {[%clk 0:00:23.5]} 22. Kd2 {[%clk 0:00:16.2]} 22... Nb4 {[%clk 0:00:22.4]} 23. Kc3 {[%clk 0:00:15]} 23... Nc6 {[%clk 0:00:21.1]} 24. Rd1 {[%clk 0:00:12.7]} 24... a6 {[%clk 0:00:20.7]} 25. f4 {[%clk 0:00:11.3]} 25... b5 {[%clk 0:00:20.2]} 26. Bb3 {[%clk 0:00:09.9]} 26... Na5 {[%clk 0:00:18.9]} 27. Bd5 {[%clk 0:00:07.6]} 27... Rac8 {[%clk 0:00:16.9]} 28. Bc6 {[%clk 0:00:06.9]} 28... Nxc6 {[%clk 0:00:14.4]} 29. h5 {[%clk 0:00:06]} 29... Na5 {[%clk 0:00:14]} 30. hxg6 {[%clk 0:00:05.1]} 30... c5 {[%clk 0:00:12.8]} 31. Rh1 {[%clk 0:00:04.3]} 31... b4+ {[%clk 0:00:11.8]} 32. Kc2 {[%clk 0:00:01.1]} 32... h6 {[%clk 0:00:11.4]} 33. Rxh6+ {[%clk 0:00:00.2]} 33... gxh6 {[%clk 0:00:09.6]} 0-1

[Event "Live Chess"]
[Site "Chess.com"]
[Date "2010.12.14"]
[Round "-"]
[White "hipposcottimus"]
[Black "keizer-inactive"]
[Result "1-0"]
[CurrentPosition "r3r1k1/1q3ppp/1p1B4/p7/P4P2/8/1P2RQPP/2R3K1 b - -"]
[Timezone "UTC"]
[ECO "B01"]
[ECOUrl "https://www.chess.com/openings/Scandinavian-Defense-Mieses-Kotrc-Variation-3.Nc3"]
[UTCDate "2010.12.14"]
[UTCTime "09:12:08"]
[WhiteElo "1642"]
[BlackElo "1369"]
[TimeControl "60"]
[Termination "hipposcottimus won on time"]
[StartTime "09:12:08"]
[EndDate "2010.12.14"]
[EndTime "09:14:13"]
[Link "https://www.chess.com/game/live/77152525"]

1. e4 {[%clk 0:01:00]} 1... d5 {[%clk 0:01:00]} 2. exd5 {[%clk 0:00:58.8]} 2... Qxd5 {[%clk 0:00:58.3]} 3. Nc3 {[%clk 0:00:58.5]} 3... Qe6+ {[%clk 0:00:57.7]} 4. Be2 {[%clk 0:00:57.8]} 4... Nc6 {[%clk 0:00:55.6]} 5. d4 {[%clk 0:00:54.7]} 5... Qd6 {[%clk 0:00:52]} 6. d5 {[%clk 0:00:51.5]} 6... Ne5 {[%clk 0:00:49.6]} 7. Nf3 {[%clk 0:00:50.4]} 7... Nxf3+ {[%clk 0:00:45.4]} 8. Bxf3 {[%clk 0:00:50.1]} 8... b6 {[%clk 0:00:43.9]} 9. O-O {[%clk 0:00:48.4]} 9... Nf6 {[%clk 0:00:42.9]} 10. Ne4 {[%clk 0:00:44.3]} 10... Nxe4 {[%clk 0:00:40.1]} 11. Bxe4 {[%clk 0:00:44]} 11... Bb7 {[%clk 0:00:39.3]} 12. c4 {[%clk 0:00:43.6]} 12... e6 {[%clk 0:00:34.7]} 13. f4 {[%clk 0:00:36.8]} 13... exd5 {[%clk 0:00:32.2]} 14. cxd5 {[%clk 0:00:36.5]} 14... Be7 {[%clk 0:00:28.6]} 15. Bd2 {[%clk 0:00:34]} 15... O-O {[%clk 0:00:26.7]} 16. a3 {[%clk 0:00:33.5]} 16... c6 {[%clk 0:00:24.5]} 17. Bb4 {[%clk 0:00:32.4]} 17... Qd8 {[%clk 0:00:20]} 18. dxc6 {[%clk 0:00:29.5]} 18... Ba6 {[%clk 0:00:17.2]} 19. Qe1 {[%clk 0:00:26.6]} 19... Qc8 {[%clk 0:00:15.8]} 20. Rf2 {[%clk 0:00:23.9]} 20... Bb5 {[%clk 0:00:11.4]} 21. a4 {[%clk 0:00:21.4]} 21... Bxc6 {[%clk 0:00:09.9]} 22. Bxe7 {[%clk 0:00:20]} 22... Re8 {[%clk 0:00:08.3]} 23. Bxc6 {[%clk 0:00:18.8]} 23... Qxc6 {[%clk 0:00:07.1]} 24. Re2 {[%clk 0:00:18.3]} 24... Qc7 {[%clk 0:00:05.2]} 25. Rc1 {[%clk 0:00:16.6]} 25... Qb7 {[%clk 0:00:03.3]} 26. Qf2 {[%clk 0:00:12.5]} 26... a5 {[%clk 0:00:00.9]} 27. Bd6 {[%clk 0:00:07.9]} 1-0

[Event "Live Chess"]
[Site "Chess.com"]
[Date "2010.12.14"]
[Round "-"]
[White "keizer-inactive"]
[Black "hipposcottimus"]
[Result "0-1"]
[CurrentPosition "r3r1k1/p1p2ppp/3N4/3Q4/8/2P2P1P/PP2n2R/R1B3qK w - -"]
[Timezone "UTC"]
[ECO "D02"]
[ECOUrl "https://www.chess.com/openings/Queens-Pawn-Opening-Zukertort-Variation"]
[UTCDate "2010.12.14"]
[UTCTime "09:10:13"]
[WhiteElo "1372"]
[BlackElo "1639"]
[TimeControl "60"]
[Termination "hipposcottimus won by checkmate"]
[StartTime "09:10:13"]
[EndDate "2010.12.14"]
[EndTime "09:11:43"]
[Link "https://www.chess.com/game/live/77152184"]

1. Nf3 {[%clk 0:01:00]} 1... d5 {[%clk 0:01:00]} 2. d4 {[%clk 0:00:57.9]} 2... Bg4 {[%clk 0:00:59.6]} 3. h3 {[%clk 0:00:55.8]} 3... Bxf3 {[%clk 0:00:58.8]} 4. exf3 {[%clk 0:00:53.3]} 4... Nc6 {[%clk 0:00:57]} 5. Bb5 {[%clk 0:00:51.5]} 5... Nf6 {[%clk 0:00:56.2]} 6. Bxc6+ {[%clk 0:00:50]} 6... bxc6 {[%clk 0:00:55.9]} 7. c3 {[%clk 0:00:48.6]} 7... e6 {[%clk 0:00:55.6]} 8. Qb3 {[%clk 0:00:46.4]} 8... Bd6 {[%clk 0:00:55.3]} 9. Nd2 {[%clk 0:00:44.5]} 9... O-O {[%clk 0:00:54.9]} 10. Nf1 {[%clk 0:00:39.9]} 10... e5 {[%clk 0:00:54.5]} 11. dxe5 {[%clk 0:00:38]} 11... Bxe5 {[%clk 0:00:54.1]} 12. f4 {[%clk 0:00:37.6]} 12... Bd6 {[%clk 0:00:52.2]} 13. g3 {[%clk 0:00:37]} 13... Re8+ {[%clk 0:00:51.5]} 14. Ne3 {[%clk 0:00:35.4]} 14... c5 {[%clk 0:00:49.2]} 15. O-O {[%clk 0:00:33.8]} 15... c4 {[%clk 0:00:48.3]} 16. Qb5 {[%clk 0:00:30.7]} 16... Ne4 {[%clk 0:00:47.2]} 17. Qxd5 {[%clk 0:00:25.7]} 17... Qf6 {[%clk 0:00:43.6]} 18. f3 {[%clk 0:00:24.6]} 18... Nxg3 {[%clk 0:00:41]} 19. Rf2 {[%clk 0:00:21.4]} 19... Qxf4 {[%clk 0:00:38]} 20. Nxc4 {[%clk 0:00:20]} 20... Qh4 {[%clk 0:00:35.8]} 21. Rh2 {[%clk 0:00:17.4]} 21... Ne2+ {[%clk 0:00:34.2]} 22. Kh1 {[%clk 0:00:15.5]} 22... Qg3 {[%clk 0:00:30.1]} 23. Nxd6 {[%clk 0:00:13.3]} 23... Qg1# {[%clk 0:00:29]} 0-1

[Event "Live Chess"]
[Site "Chess.com"]
[Date "2010.12.14"]
[Round "-"]
[White "hipposcottimus"]
[Black "keizer-inactive"]
[Result "1-0"]
[CurrentPosition "8/7p/3B1kp1/2PP4/4P1b1/8/2r3PP/5RK1 b - -"]
[Timezone "UTC"]
[ECO "B22"]
[ECOUrl "https://www.chess.com/openings/Alapin-Sicilian-Defense-2...e6-3.d4"]
[UTCDate "2010.12.14"]
[UTCTime "09:07:46"]
[WhiteElo "1636"]
[BlackElo "1375"]
[TimeControl "60"]
[Termination "hipposcottimus won on time"]
[StartTime "09:07:46"]
[EndDate "2010.12.14"]
[EndTime "09:09:59"]
[Link "https://www.chess.com/game/live/77151718"]

1. e4 {[%clk 0:01:00]} 1... e6 {[%clk 0:01:00]} 2. d4 {[%clk 0:00:58.2]} 2... c5 {[%clk 0:00:58.3]} 3. c3 {[%clk 0:00:56.1]} 3... c4 {[%clk 0:00:56.6]} 4. b3 {[%clk 0:00:54.4]} 4... d6 {[%clk 0:00:55.9]} 5. bxc4 {[%clk 0:00:53.1]} 5... Nc6 {[%clk 0:00:54.8]} 6. Nf3 {[%clk 0:00:50.4]} 6... f6 {[%clk 0:00:53.4]} 7. Be2 {[%clk 0:00:48.7]} 7... e5 {[%clk 0:00:52.7]} 8. d5 {[%clk 0:00:47.7]} 8... Na5 {[%clk 0:00:50.6]} 9. O-O {[%clk 0:00:47.4]} 9... f5 {[%clk 0:00:48.2]} 10. Bd3 {[%clk 0:00:44.3]} 10... fxe4 {[%clk 0:00:46.9]} 11. Bxe4 {[%clk 0:00:43.9]} 11... Nf6 {[%clk 0:00:46]} 12. Qe2 {[%clk 0:00:42.1]} 12... Nxe4 {[%clk 0:00:41.2]} 13. Qxe4 {[%clk 0:00:41.8]} 13... g6 {[%clk 0:00:37.5]} 14. Ba3 {[%clk 0:00:39.3]} 14... Bf5 {[%clk 0:00:35.4]} 15. Qe1 {[%clk 0:00:31.4]} 15... Nxc4 {[%clk 0:00:34.6]} 16. Bb4 {[%clk 0:00:28.2]} 16... a5 {[%clk 0:00:32.4]} 17. Na3 {[%clk 0:00:27.3]} 17... Nxa3 {[%clk 0:00:28.6]} 18. Bxa3 {[%clk 0:00:26.1]} 18... b5 {[%clk 0:00:27.5]} 19. Bb2 {[%clk 0:00:24.6]} 19... e4 {[%clk 0:00:26.3]} 20. Nd4 {[%clk 0:00:22.6]} 20... Qf6 {[%clk 0:00:23.2]} 21. Nxb5 {[%clk 0:00:20.7]} 21... Rb8 {[%clk 0:00:22.1]} 22. Rb1 {[%clk 0:00:15.1]} 22... Rxb5 {[%clk 0:00:21]} 23. c4 {[%clk 0:00:14.4]} 23... Rb4 {[%clk 0:00:19.2]} 24. Bxf6 {[%clk 0:00:12]} 24... Rg8 {[%clk 0:00:15.9]} 25. Rxb4 {[%clk 0:00:10.3]} 25... axb4 {[%clk 0:00:14.2]} 26. Qxb4 {[%clk 0:00:09.2]} 26... Be7 {[%clk 0:00:13]} 27. Qb8+ {[%clk 0:00:08.2]} 27... Kf7 {[%clk 0:00:11.3]} 28. Bxe7 {[%clk 0:00:07.5]} 28... Rxb8 {[%clk 0:00:10]} 29. Bxd6 {[%clk 0:00:05.6]} 29... Kf6 {[%clk 0:00:08.1]} 30. Re1 {[%clk 0:00:05.1]} 30... Rb2 {[%clk 0:00:06.5]} 31. f3 {[%clk 0:00:04.4]} 31... Rxa2 {[%clk 0:00:05.8]} 32. fxe4 {[%clk 0:00:03.8]} 32... Bg4 {[%clk 0:00:02.7]} 33. c5 {[%clk 0:00:03.4]} 33... Rc2 {[%clk 0:00:01]} 34. Rf1+ {[%clk 0:00:03]} 1-0

[Event "Live Chess"]
[Site "Chess.com"]
[Date "2010.12.14"]
[Round "-"]
[White "kitbits"]
[Black "hipposcottimus"]
[Result "0-1"]
[CurrentPosition "2br2k1/p2r2pp/5p2/5nP1/5N2/1P5P/P1K5/R3R3 w - -"]
[Timezone "UTC"]
[ECO "A40"]
[ECOUrl "https://www.chess.com/openings/Englund-Gambit-2.dxe5"]
[UTCDate "2010.12.14"]
[UTCTime "09:05:07"]
[WhiteElo "987"]
[BlackElo "1633"]
[TimeControl "60"]
[Termination "hipposcottimus won on time"]
[StartTime "09:05:07"]
[EndDate "2010.12.14"]
[EndTime "09:07:06"]
[Link "https://www.chess.com/game/live/77151124"]

1. d4 {[%clk 0:01:00]} 1... e5 {[%clk 0:01:00]} 2. dxe5 {[%clk 0:00:57.8]} 2... Qf6 {[%clk 0:00:59.5]} 3. f4 {[%clk 0:00:56.8]} 3... Qxe5 {[%clk 0:00:57.7]} 4. fxe5 {[%clk 0:00:54.7]} 4... Bd6 {[%clk 0:00:57.4]} 5. Qd4 {[%clk 0:00:49.9]} 5... Ne7 {[%clk 0:00:56.8]} 6. c4 {[%clk 0:00:46.6]} 6... c5 {[%clk 0:00:52.9]} 7. Qd1 {[%clk 0:00:43.4]} 7... Bxe5 {[%clk 0:00:51.5]} 8. Nf3 {[%clk 0:00:41.1]} 8... Bf6 {[%clk 0:00:49.3]} 9. h3 {[%clk 0:00:37.1]} 9... O-O {[%clk 0:00:49]} 10. g4 {[%clk 0:00:36]} 10... Nbc6 {[%clk 0:00:48.7]} 11. g5 {[%clk 0:00:34.8]} 11... Bd4 {[%clk 0:00:43.1]} 12. e3 {[%clk 0:00:32.2]} 12... Be5 {[%clk 0:00:40.2]} 13. Nxe5 {[%clk 0:00:31]} 13... Nxe5 {[%clk 0:00:39.9]} 14. Bg2 {[%clk 0:00:30.4]} 14... f6 {[%clk 0:00:38.3]} 15. Qd6 {[%clk 0:00:28.3]} 15... Nf5 {[%clk 0:00:33]} 16. Be4 {[%clk 0:00:25.2]} 16... Nxd6 {[%clk 0:00:31.6]} 17. Bxb7 {[%clk 0:00:22.6]} 17... Nxb7 {[%clk 0:00:29.3]} 18. Nc3 {[%clk 0:00:22.2]} 18... Nxc4 {[%clk 0:00:28.1]} 19. Nb5 {[%clk 0:00:21.5]} 19... Nbd6 {[%clk 0:00:24.5]} 20. Nc7 {[%clk 0:00:20.8]} 20... Rb8 {[%clk 0:00:22.4]} 21. b3 {[%clk 0:00:20.3]} 21... Rb7 {[%clk 0:00:19.2]} 22. Nd5 {[%clk 0:00:17.1]} 22... Nxe3 {[%clk 0:00:17.6]} 23. Bxe3 {[%clk 0:00:15.2]} 23... Re8 {[%clk 0:00:17.3]} 24. Kd2 {[%clk 0:00:11.7]} 24... Nf5 {[%clk 0:00:17]} 25. Bxc5 {[%clk 0:00:11.1]} 25... d6 {[%clk 0:00:14.8]} 26. Bxd6 {[%clk 0:00:08.5]} 26... Nxd6 {[%clk 0:00:12.2]} 27. Nf4 {[%clk 0:00:06.9]} 27... Rd7 {[%clk 0:00:11.8]} 28. Rhe1 {[%clk 0:00:05.9]} 28... Nf5+ {[%clk 0:00:10.8]} 29. Kc2 {[%clk 0:00:05.3]} 29... Red8 {[%clk 0:00:10.5]} 0-1

[Event "Live Chess"]
[Site "Chess.com"]
[Date "2010.12.14"]
[Round "-"]
[White "hipposcottimus"]
[Black "kitbits"]
[Result "1-0"]
[CurrentPosition "2r1q1nr/7p/5k1b/p1p3p1/4Q1B1/3PP3/1P3PPP/R4RK1 b - -"]
[Timezone "UTC"]
[ECO "A00"]
[ECOUrl "https://www.chess.com/openings/Ware-Opening-1...e5"]
[UTCDate "2010.12.14"]
[UTCTime "09:02:27"]
[WhiteElo "1633"]
[BlackElo "987"]
[TimeControl "60"]
[Termination "hipposcottimus won on time"]
[StartTime "09:02:27"]
[EndDate "2010.12.14"]
[EndTime "09:04:32"]
[Link "https://www.chess.com/game/live/77150625"]

1. a4 {[%clk 0:01:00]} 1... e5 {[%clk 0:01:00]} 2. c4 {[%clk 0:00:51.9]} 2... f6 {[%clk 0:00:58.7]} 3. d3 {[%clk 0:00:50]} 3... c5 {[%clk 0:00:57.6]} 4. Bd2 {[%clk 0:00:48.9]} 4... Nc6 {[%clk 0:00:56.9]} 5. a5 {[%clk 0:00:45.7]} 5... b6 {[%clk 0:00:54.5]} 6. e3 {[%clk 0:00:44.7]} 6... bxa5 {[%clk 0:00:52.6]} 7. Qa4 {[%clk 0:00:40.6]} 7... g5 {[%clk 0:00:48]} 8. Bxa5 {[%clk 0:00:39.5]} 8... Qe7 {[%clk 0:00:44.5]} 9. Bc3 {[%clk 0:00:33.9]} 9... a5 {[%clk 0:00:40.5]} 10. Na3 {[%clk 0:00:30.1]} 10... Bh6 {[%clk 0:00:34]} 11. Nb5 {[%clk 0:00:29]} 11... Qd8 {[%clk 0:00:27.4]} 12. Be2 {[%clk 0:00:25]} 12... Ba6 {[%clk 0:00:23.6]} 13. Bh5+ {[%clk 0:00:20.4]} 13... Ke7 {[%clk 0:00:20.8]} 14. Nf3 {[%clk 0:00:17.6]} 14... Bxb5 {[%clk 0:00:17.8]} 15. cxb5 {[%clk 0:00:17.3]} 15... e4 {[%clk 0:00:16.4]} 16. bxc6 {[%clk 0:00:14.2]} 16... dxc6 {[%clk 0:00:14.1]} 17. Qxc6 {[%clk 0:00:11.9]} 17... exf3 {[%clk 0:00:12.7]} 18. Bxf3 {[%clk 0:00:11.6]} 18... Rc8 {[%clk 0:00:10.4]} 19. Bxf6+ {[%clk 0:00:10.5]} 19... Kf7 {[%clk 0:00:07.5]} 20. Qe4 {[%clk 0:00:09.9]} 20... Kxf6 {[%clk 0:00:04.6]} 21. O-O {[%clk 0:00:06.5]} 21... Qe8 {[%clk 0:00:00.1]} 22. Bg4 {[%clk 0:00:06.2]} 1-0

[Event "Live Chess"]
[Site "Chess.com"]
[Date "2010.12.14"]
[Round "-"]
[White "kitbits"]
[Black "hipposcottimus"]
[Result "0-1"]
[CurrentPosition "3r2k1/pp4pp/2p1r3/4p3/3nN3/7P/P2K2P1/3R2NR w - -"]
[Timezone "UTC"]
[ECO "D00"]
[ECOUrl "https://www.chess.com/openings/Queens-Pawn-Opening-1...d5-2.e3"]
[UTCDate "2010.12.14"]
[UTCTime "09:00:15"]
[WhiteElo "987"]
[BlackElo "1633"]
[TimeControl "60"]
[Termination "hipposcottimus won on time"]
[StartTime "09:00:15"]
[EndDate "2010.12.14"]
[EndTime "09:02:02"]
[Link "https://www.chess.com/game/live/77150206"]

1. d4 {[%clk 0:01:00]} 1... d5 {[%clk 0:01:00]} 2. e3 {[%clk 0:00:58.9]} 2... c6 {[%clk 0:00:57]} 3. h3 {[%clk 0:00:56.8]} 3... Nd7 {[%clk 0:00:56.7]} 4. f4 {[%clk 0:00:52.7]} 4... e5 {[%clk 0:00:56.4]} 5. dxe5 {[%clk 0:00:50.3]} 5... Nxe5 {[%clk 0:00:56.1]} 6. fxe5 {[%clk 0:00:48.1]} 6... Bb4+ {[%clk 0:00:55.8]} 7. c3 {[%clk 0:00:46.5]} 7... Ba5 {[%clk 0:00:55.4]} 8. b4 {[%clk 0:00:44.4]} 8... Bc7 {[%clk 0:00:55]} 9. Qd4 {[%clk 0:00:40.9]} 9... f6 {[%clk 0:00:50.8]} 10. e4 {[%clk 0:00:36.7]} 10... fxe5 {[%clk 0:00:49.3]} 11. Qc5 {[%clk 0:00:32.6]} 11... Bd6 {[%clk 0:00:46.5]} 12. Qxd6 {[%clk 0:00:22.5]} 12... Qxd6 {[%clk 0:00:44.7]} 13. exd5 {[%clk 0:00:21.9]} 13... Qxd5 {[%clk 0:00:43.1]} 14. c4 {[%clk 0:00:18]} 14... Nf6 {[%clk 0:00:39.3]} 15. cxd5 {[%clk 0:00:16]} 15... O-O {[%clk 0:00:38.4]} 16. Bg5 {[%clk 0:00:13.9]} 16... Nxd5 {[%clk 0:00:36.7]} 17. Bf6 {[%clk 0:00:13.2]} 17... Rxf6 {[%clk 0:00:35.2]} 18. Bc4 {[%clk 0:00:12.4]} 18... Be6 {[%clk 0:00:30.9]} 19. Nc3 {[%clk 0:00:11.9]} 19... Nxb4 {[%clk 0:00:29.7]} 20. Bxe6+ {[%clk 0:00:10.4]} 20... Rxe6 {[%clk 0:00:28.5]} 21. Rd1 {[%clk 0:00:09.1]} 21... Nc2+ {[%clk 0:00:26]} 22. Kd2 {[%clk 0:00:03.3]} 22... Nd4 {[%clk 0:00:25.6]} 23. Ne4 {[%clk 0:00:00.4]} 23... Rd8 {[%clk 0:00:24.9]} 0-1